Cogmind - Beta 13 X1 @@@ ROGUE MODE // 2023.09.25 @ 20:18:45 Player: f3-rnm Result: Self-destructed Performance ------------- Evolutions (5) 2500 Regions Visited (4) 800 Robots Destroyed (27) 135 Value Destroyed (597) 597 Prototype IDs (14) 280 Alien Tech Used (0) 0 Bonus (-512) -512 TOTAL SCORE: 3800 Bonus ------- Follower Combat Kills 97 Friendly Fire -609 Cogmind --------- Core Integrity 1000/1000 Matter 155/300 Energy 213/213 System Corruption 0% Temperature Warm (117) Movement Treading (163) Location -5/Factory Parts ------- > --- POWER (2) -------- Nuclear-Deuterium Core > --- PROPULSION (4) --- Light Treads Light Treads Armored Medium Treads > --- UTILITY (9) ------ Armored Scrap Engine Small Storage Unit Improved Weapon Cycler Improved Thermal Shield Improved Component Analysis Suite > --- WEAPON (2) ------- Ballistic Gauss Construct/C KE Gauss Construct/C > --- INVENTORY (8) ---- Tesla Rifle Powered Cannon Improved Plasma Cutter Makeshift Hammer Peak State ------------ > --- POWER ------------ Nuclear-Deuterium Core > --- PROPULSION ------- Light Treads Light Treads Armored Medium Treads > --- UTILITY ---------- Armored Scrap Engine Small Storage Unit Improved Weapon Cycler Improved Thermal Shield Improved Component Analysis Suite > --- WEAPON ----------- Ballistic Gauss Construct/C KE Gauss Construct/C > --- INVENTORY -------- Tesla Rifle Powered Cannon Improved Plasma Cutter Makeshift Hammer [Rating: 59] Favorites ----------- Power Ion Engine Engine Ion Engine Power Core Light Nuclear Core Propulsion Light Treads Treads Light Treads Utility V3-11A's Pendant Device V3-11A's Pendant Storage Small Storage Unit Protection Makeshift Armor Plating Weapon Subdweller Beam Cannon Energy Cannon Subdweller Beam Cannon Ballistic Gun Light Assault Rifle Ballistic Cannon Battle Cannon Launcher Subdweller Shrapnel Launcher Impact Weapon Makeshift Hammer Special Melee Weapon Datajack Build | -11 -10 -10 -7 -5 ------- Run | Jun Mat Sub Rec Fac Slots Evolved 10 | . . . . 10 Power 1 | . . . . 1 Propulsion 2 | . . . . 2 Utility 7 | . . . . 7 Weapon . | . . . . . Parts Attached 52 | 6 9 25 7 5 Power 5 | 1 . 3 1 . Engine 4 | 1 . 2 1 . Core 1 | . . 1 . . Reactor . | . . . . . Propulsion 10 | 2 3 3 1 1 Treads 10 | 2 3 3 1 1 Leg . | . . . . . Wheel . | . . . . . Hover . | . . . . . Flight . | . . . . . Utility 14 | 1 2 6 1 4 Device 5 | . . 1 1 3 Storage 3 | 1 . 1 . 1 Processor . | . . . . . Hackware . | . . . . . Protection 6 | . 2 4 . . Artifact . | . . . . . Weapon 23 | 2 4 13 4 . Energy Gun . | . . . . . Energy Cannon 6 | . 1 4 1 . Ballistic Gun 4 | 2 2 . . . Ballistic Cannon 5 | . 1 2 2 . Launcher 4 | . . 3 1 . Special Weapon . | . . . . . Impact Weapon 2 | . . 2 . . Slashing Weapon . | . . . . . Piercing Weapon . | . . . . . Special Melee Weapon 2 | . . 2 . . Unidentified Prototypes 1 | . . 1 . . Parts Lost 6 | . . 5 1 . Power 1 | . . 1 . . Propulsion 2 | . . 2 . . Utility 1 | . . 1 . . Weapon 2 | . . 1 1 . Highest Loss Streak 2 | . . 2 1 . To Critical Strikes . | . . . . . Average Slot Usage (%) 88 | . 98 91 79 47 Engine 7 | . 14 6 8 . Core 2 | . . 2 2 5 Treads 27 | . 28 27 28 14 Device 8 | . . 8 13 10 Storage 3 | . 14 3 . 3 Protection 10 | . 12 13 . . Energy Cannon 12 | . 2 13 11 . Ballistic Gun 1 | . 22 . . . Ballistic Cannon 11 | . 2 11 13 11 Impact Weapon 1 | . . 1 . . Naked Turns . | . . . . . Heaviest Build 34 | 12 19 34 20 27 Greatest Support 67 | 40 40 40 40 67 Greatest Overweight (x) . | . . . . . Average Overweight (x) . | . . . . . Largest Inventory Capacity 8 | 8 8 8 8 8 Average Capacity 5 | 6 8 5 5 7 Most Carried 8 | 5 8 8 8 7 Average Carried 5 | 2 6 5 4 5 Final Capacity 8 | 8 8 8 5 8 Final Carried 8 | 2 8 8 4 5 Scrap Engine Consumption 23 | . . . 21 2 Constructs Created 3 | . . . 3 . Constructs Modified 1 | . . . 1 . Class Distribution -------------------- 81% | Mutant 18% | Construct Dominant Class ---------------- Mutant | -10/Materials Mutant | -10/Subcaves Construct | -7/Recycling Mutant | -5/Factory Resources | -11 -10 -10 -7 -5 ----------- Run | Jun Mat Sub Rec Fac Matter Collected 1455 | 246 180 896 130 3 Remotely . | . . . . . Salvage Created 811 | . 266 316 183 46 Parts 50 | . 19 24 5 2 Haulers Intercepted 1 | . 1 . . . Recyclers Shooed . | . . . . . Parts Field Recycled . | . . . . . Retrieved Matter . | . . . . . Parts Self-Destructed 17 | . . 17 . . Prevented . | . . . . . Kills | -11 -10 -10 -7 -5 ------- Run | Jun Mat Sub Rec Fac Combat Hostiles Destroyed 22 | . 7 13 1 1 Guns 7 | . 7 . . . Cannons 12 | . . 10 1 1 AOE 3 | . . 3 . . Classes Destroyed 6 | . 3 1 2 . Hauler 1 | . 1 . . . Recycler 2 | . . . 2 . Swarmer 11 | . 3 8 . . Grunt 5 | . 4 . . 1 Sentry 1 | . . . 1 . Subdweller 7 | . . 7 . . Best Kill Streak 3 | . 3 3 1 1 Combat Bots Only 3 | . 3 3 1 1 Max Kills in Single Turn 3 | . 1 3 1 1 Gunslinging . | . . . . . Exploded 3 | . . 3 . . Melee . | . . . . . Uniques/NPCs Destroyed . | . . . . . Combat | -11 -10 -10 -7 -5 -------- Run | Jun Mat Sub Rec Fac Damage Taken 1808 | . 343 1329 87 49 Core 217 | . 76 131 10 . Absorbed by Shields . | . . . . . Redirected to Shielding 9 | . 9 . . . Ignored by Resistances 5 | . . . . 5 Core Remaining (%) 56 | 100 . . 13 . Volleys Fired 147 | 1 35 90 7 14 Largest 2 | 2 2 2 2 2 Hottest 119 | 40 95 119 105 97 Shots Fired 244 | 2 70 130 14 28 Gun 68 | 2 66 . . . Cannon 165 | . 4 120 13 28 Launcher 11 | . . 10 1 . Special . | . . . . . Kinetic 200 | 2 68 90 12 28 Thermal 42 | . 2 40 . . Explosive . | . . . . . Electromagnetic 2 | . . . 2 . Robot Hit Streak 16 | 2 6 16 3 12 Robot Miss Streak 3 | . 3 3 2 2 Penetration Max . | . . . . . Secondary Targets 2 | . 2 . . . Max Gunslinging Chain 1 | . 1 . . . Shots Hit Robots 132 | 2 36 64 7 23 Core Hits 53 | 1 20 25 5 2 Critical Kills 1 | . . . . 1 Critical Parts Destroyed 1 | . 1 . . . Critical Strikes 7 | . 1 3 1 2 Destroy 2 | . 1 . . 1 Blast 5 | . . 3 1 1 Melee Attacks 27 | . . 27 . . Impact 26 | . . 26 . . Slashing . | . . . . . Piercing . | . . . . . Sneak Attacks 1 | . . 1 . . Combat Hostiles . | . . . . . Follow-up Attacks . | . . . . . Damage Inflicted 2794 | 17 319 1812 172 474 Guns 336 | 17 319 . . . Cannons 1876 | . . 1263 139 474 Explosions 582 | . . 549 33 . Melee . | . . . . . Ramming . | . . . . . Kinetic 2275 | 17 319 1326 139 474 Thermal 486 | . . 486 . . Explosive . | . . . . . Electromagnetic 33 | . . . 33 . Impact . | . . . . . Slashing . | . . . . . Piercing . | . . . . . Highest Corruption 1 | . 1 1 1 . Average Corruption 1 | . 1 1 1 . Corruption Purged . | . . . . . Corruption Blocked . | . . . . . Effects 60 | . . 50 10 . Message Errors 14 | . . 12 2 . Matter Fused 15 | . . 13 2 . Heat Flow Errors 7 | . . 5 2 . Energy Discharges 7 | . . 7 . . Data Loss (minor) 7 | . . 5 2 . Data Loss (major) 3 | . . 2 1 . Misfires 6 | . . 5 1 . Weapon Failures 1 | . . 1 . . Overload Shots . | . . . . . Overflow Damage 73 | . . 68 5 . Projectiles . | . . . . . Explosions 73 | . . 68 5 . Melee . | . . . . . Knockbacks 11 | . . 10 . 1 Impact . | . . . . . Kinetic 10 | . . 9 . 1 Secondary 1 | . . 1 . . Self-Inflicted Damage 191 | . . 147 10 34 Shots 6 | . . 4 1 1 Rammed . | . . . . . Targets Rammed . | . . . . . Kicked . | . . . . . Crushed . | . . . . . Highest Temperature 255 | . 84 255 153 117 Average Temperature 40 | . 18 39 46 56 Received Heat Transfer 324 | . 144 147 24 9 Siege Activations . | . . . . . Robots Corrupted . | . . . . . Combat Hostiles . | . . . . . Parts Fried . | . . . . . Impact Corruptions . | . . . . . Robots Melted . | . . . . . Combat Hostiles . | . . . . . Parts Melted . | . . . . . Heat Transferred 925 | . . 925 . . Parts Sabotaged . | . . . . . Parts Stolen . | . . . . . Parts Stripped . | . . . . . Power Chain Reactions . | . . . . . Missiles Intercepted . | . . . . . Alert | -11 -10 -10 -7 -5 ------- Run | Jun Mat Sub Rec Fac Peak Influence 220 | . 175 . 220 210 Initial 220 | . . . 220 100 Average 54 | . 35 . 49 128 Maximum Alert Level 1 | . . . 1 1 Low Security (%) 96 | 100 100 . 99 73 Level 1 3 | . . . . 26 Level 2 . | . . . . . Level 3 . | . . . . . Level 4 . | . . . . . Level 5 . | . . . . . High Security . | . . . . . Max Security . | . . . . . Squads Dispatched 1 | . 1 . . . Investigation . | . . . . . Extermination . | . . . . . Reinforcement 1 | . 1 . . . Assault . | . . . . . Garrison . | . . . . . Intercept . | . . . . . Searches Triggered . | . . . . . Construction Impeded . | . . . . . Haulers Reinforced . | . . . . . Active Scanning Responses . | . . . . . Cargo Convoy Interrupts . | . . . . . Stealth | -11 -10 -10 -7 -5 --------- Run | Jun Mat Sub Rec Fac Distress Signals 1 | . 1 . . . Communications Jammed . | . . . . . Distress Signals . | . . . . . Times Spotted 55 | . 11 40 1 3 Peak Tracking Total 6 | . 4 6 1 2 Tactical Retreats 2 | . . 2 . . Traps | -11 -10 -10 -7 -5 ------- Run | Jun Mat Sub Rec Fac Traps Triggered 4 | . 1 3 . . Indirectly . | . . . . . Trap Hack Attempts . | . . . . . Triggered . | . . . . . Disarmed . | . . . . . Reprogrammed . | . . . . . Reused . | . . . . . Traps Extracted . | . . . . . Installed 1 | . . 1 . . Triggered . | . . . . . Machines | -11 -10 -10 -7 -5 ---------- Run | Jun Mat Sub Rec Fac Machines Disabled 5 | . . 3 . 2 Max in Single Turn 2 | . . 1 . 2 Machines Repaired . | . . . . . Machines Sabotaged . | . . . . . Overloaded Fab Kills . | . . . . . Hacking | -11 -10 -10 -7 -5 --------- Run | Jun Mat Sub Rec Fac Machines Accessed 11 | . 1 2 7 1 Terminals 7 | . 1 . 5 1 Fabricators . | . . . . . Repair Stations . | . . . . . Recycling Units 2 | . . . 2 . Scanalyzers . | . . . . . Garrison Access . | . . . . . Total Hacks 26 | . 2 6 15 3 Successful 13 | . 1 6 5 1 Failed 13 | . 1 . 10 2 Catastrophic 3 | . . . 3 . Database Lockouts . | . . . . . Manual 9 | . . . 9 . Terminals 15 | . 2 . 10 3 Fabricators . | . . . . . Repair Stations . | . . . . . Recycling Units 5 | . . . 5 . Scanalyzers . | . . . . . Garrison Access . | . . . . . Terminal Hacks 10 | . 1 6 2 1 Record 6 | . . 5 1 . Robot Analysis 1 | . . . 1 . Transport Status 1 | . . . . 1 Zone Layout 1 | . 1 . . . Derelict Proto ID Bank 1 | . . 1 . . Fabricator Hacks . | . . . . . Repair Station Hacks . | . . . . . Recycling Unit Hacks 3 | . . . 3 . Report Inventory 2 | . . . 2 . Retrieve Components 1 | . . . 1 . Scanalyzer . | . . . . . Garrison Access Hacks . | . . . . . Unauthorized Hacks . | . . . . . Terminals . | . . . . . Fabricators . | . . . . . Repair Stations . | . . . . . Recycling Units . | . . . . . Scanalyzers . | . . . . . Garrison Access . | . . . . . Data Cores Recovered . | . . . . . Used . | . . . . . Hacking Detections 6 | . 1 . 5 . Full Trace Events 2 | . . . 2 . Feedback Events . | . . . . . Feedback Blocked . | . . . . . Robot Schematics Acquired . | . . . . . Robots Built . | . . . . . Authchips . | . . . . . Time . | . . . . . Total Robot Build Rating . | . . . . . Part Schematics Acquired . | . . . . . Parts Built . | . . . . . Authchips . | . . . . . Time . | . . . . . Total Part Build Rating . | . . . . . Parts Repaired . | . . . . . Time . | . . . . . Parts Recycled . | . . . . . Recycled Matter . | . . . . . Retrieved Matter . | . . . . . Retrieved Components 3 | . . . 3 . Parts Scanalyzed . | . . . . . Part Schematics Acquired . | . . . . . Parts Damaged . | . . . . . Bothacking | -11 -10 -10 -7 -5 ------------ Run | Jun Mat Sub Rec Fac Used RIF Installer . | . . . . . Robots Hacked 1 | . . 1 . . Non-combat . | . . . . . Combat 1 | . . 1 . . Robot Hacks Applied 1 | . . 1 . . parse_system 1 | . . 1 . . Relay Couplers Released . | . . . . . Fabnet Peak Effective % . | . . . . . Robots Rewired . | . . . . . Allies Hacked . | . . . . . Hacks Repelled . | . . . . . Allies | -11 -10 -10 -7 -5 -------- Run | Jun Mat Sub Rec Fac Total Allies 15 | . . 15 . . Largest Group 7 | . . 7 1 . Highest-Rated Group 133 | . . 133 19 . Highest-Rated Ally 19 | . . 19 19 . Total Orders . | . . . . . Ally Attacks 72 | . . 68 4 . Total Damage 918 | . . 878 40 . Kills 8 | . . 8 . . Allies Corrupted . | . . . . . Allies Melted . | . . . . . Intel | -11 -10 -10 -7 -5 ------- Run | Jun Mat Sub Rec Fac Robot Analysis Total 1 | . . . 1 . Derelict Logs Recovered 2 | . . 2 . . Drone Launches . | . . . . . Drone Recoveries . | . . . . . Exploration | -11 -10 -10 -7 -5 ------------- Run | Jun Mat Sub Rec Fac Turns Passed 8513 | 64 601 5895 1638 315 Spaces Moved 4851 | 42 291 3379 975 164 Core 17 | 17 . . . . Treads 4834 | 25 291 3379 975 164 Legs . | . . . . . Wheels . | . . . . . Hover . | . . . . . Flight . | . . . . . Fastest Speed 50 | 50 160 160 160 160 Average Speed 159 | 115 160 160 160 161 Slowest Speed 163 | 160 160 160 160 163 Overloaded Moves . | . . . . . Propulsion Burnouts . | . . . . . Robots Hopped . | . . . . . Cave-ins Triggered . | . . . . . Exploration Rate (%) 48 | 3 41 95 99 5 Regions Visited 4 Branch Regions 2 Pre-discovered Areas 2 | . . 2 . . Known Exits Taken . | . . . . . Unknown Exits Taken 4 | 1 1 1 1 . Scrap Searched 22 | . . 22 . . Spaces Dug 47 | . . 47 . . Terrain Destroyed 176 | . . 145 3 28 Melee 5 | . . 5 . . Projectile 9 | . . 5 3 1 AOE 162 | . . 135 . 27 Terrain Rammed . | . . . . . Walls Destroyed . | . . . . . Machines Disabled . | . . . . . Actions | -11 -10 -10 -7 -5 --------- Run | Jun Mat Sub Rec Fac Total 5373 | 56 374 3707 1044 192 Wait 211 | . 17 152 40 2 Move 4847 | 41 290 3378 974 164 Hop . | . . . . . Pick Up 43 | 8 12 13 4 6 Fast Attach 16 | . 1 10 4 1 Attach 17 | 6 1 5 1 4 Detach . | . . . . . Swap 19 | . 7 10 2 . Drop 43 | . 11 19 12 1 Fire 147 | 1 35 90 7 14 Melee 27 | . . 27 . . Ram . | . . . . . Kick . | . . . . . Crush . | . . . . . Escape Stasis . | . . . . . Rewire . | . . . . . Trap 1 | . . 1 . . Miscellaneous 2 | . . 2 . . Route ------- -11/Junkyard -10/Materials (discovered 2 exits: [*Min] / *Sub) -10/Subcaves (discovered 3 exits: [*Mat x2] / *Rec) -7/Recycling -5/Factory History --------- Turn | Location | Event 4 | -11/Junkyard | Discovered new exit (range 15) 65 | -11/Junkyard | Entered Materials 193 | -10/Materials | Discovered new exit (range 11) 309 | -10/Materials | Build established: Mutant 492 | -10/Materials | Discovered new exit (range 10) 666 | -10/Materials | Entered Subcaves 1305 | -10/Subcaves | Discovered new exit (range 14) 1390 | -10/Subcaves | Core integrity fell below 50% 1708 | -10/Subcaves | Visited 4L-MR0's lab 1755 | -10/Subcaves | Found Powered Cannon 2083 | -10/Subcaves | Visited triangular shrine 2093 | -10/Subcaves | Found Prototype Device 2093 | -10/Subcaves | Identified V3-11A's Pendant 2098 | -10/Subcaves | Befriended Subdweller 2596 | -10/Subcaves | Learned 4 Materials zone layouts 2705 | -10/Subcaves | Learned location of Zion (-7) 3031 | -10/Subcaves | Shifting Twisted Machinery released Sub. Shrapnel Launcher 3044 | -10/Subcaves | Shifting Twisted Machinery released Mak. Laser 3088 | -10/Subcaves | Befriended Subdweller 3088 | -10/Subcaves | Befriended Subdweller 3267 | -10/Subcaves | Visited Clippyterm 3272 | -10/Subcaves | Learned location of Section 7 (-2) 3411 | -10/Subcaves | Shifting Twisted Machinery released Mak. Hammer 3433 | -10/Subcaves | Befriended Subdweller 3463 | -10/Subcaves | Befriended Subdweller 3503 | -10/Subcaves | Disturbed a concealed Subdweller 3503 | -10/Subcaves | Befriended Subdweller 3601 | -10/Subcaves | Shifting Twisted Machinery released Riot Gun 3663 | -10/Subcaves | Befriended Subdweller 3780 | -10/Subcaves | A swath of the cavern ceiling suddenly collapsed 3875 | -10/Subcaves | Discovered new exit (range 7) 3954 | -10/Subcaves | Shifting Twisted Machinery released Riot Gun 3982 | -10/Subcaves | Shifting Twisted Machinery released Mak. Hammer 3982 | -10/Subcaves | Core integrity fell below 20% 3983 | -10/Subcaves | Befriended Subdweller 3983 | -10/Subcaves | Befriended Subdweller 4091 | -10/Subcaves | A swath of the cavern ceiling suddenly collapsed 4329 | -10/Subcaves | Ambushed by Subdweller buried in earth 4333 | -10/Subcaves | Befriended Subdweller 4338 | -10/Subcaves | Ambushed by Subdweller buried in earth 4343 | -10/Subcaves | Befriended Subdweller 4508 | -10/Subcaves | Disturbed a concealed Subdweller 4513 | -10/Subcaves | Befriended Subdweller 4575 | -10/Subcaves | Ambushed by Subdweller buried in earth 4576 | -10/Subcaves | Ambushed by Subdweller buried in earth 4578 | -10/Subcaves | Befriended Subdweller 4578 | -10/Subcaves | Befriended Subdweller 4578 | -10/Subcaves | Befriended Subdweller 5075 | -10/Subcaves | Discovered new exit (range 16) 6561 | -10/Subcaves | Entered Recycling 6561 | -7/Recycling | Accompanied by 2 allies 6584 | -7/Recycling | Found Scrap Engine 6962 | -7/Recycling | Build established: Construct 7265 | -7/Recycling | Discovered new exit (range 16) 8199 | -7/Recycling | Entered Factory 8199 | -5/Factory | Evolved 10 slots: Power x1, Propulsion x2, Utility x7 8504 | -5/Factory | Build established: Mutant 8514 | -5/Factory | Self-destructed Last Messages --------------- 08427_ G-50 Soldier destroyed. 08437_ The unstable cave ceiling collapses. 08437_ R-10 Processor collects Unknown Leg. 08440_ Connecting with Terminal... 08440_ Current location identified: Factory >>Enumerate(Transport) Retrieving latest reported positions... Found 10 active transport squads. Downloaded coordinate data. 08440_ R-10 Processor collects Lgt. Angular Momentum Engine. 08441_ The unstable cave ceiling collapses. 08463_ Acquired Imp. Weapon Cycler. 08480_ Slug penetrates Nuclear Reactor. 08480_ Slug penetrates A-15 Conveyor. 08490_ Acquired 3 matter. 08497_ The unstable cave ceiling collapses. 08502_ ALERT: Security rotation in progress. 08503_ Slug penetrates A-15 Conveyor. 08507_ A-15 Conveyor suffers critical hit (Blast). 08507_ Destroyed Transport Network Coupler. Map ----- +----------------------------------------------------+ | ??????????????????????????????????? | | ??????????????????????????????????? | | ??????????????????????????????????? | | ??????????????????????????????????? | | ??????????????????????????????????? | | ????????????????????????? ????????? | | ?????????????????? ?????? #???????? | | ?????????????????? ?????? #???????? | | ?????????????????? ?????? #???????? | | ?????????????????# ?????? #???????? | | ?????????????????# ###### #???????? | | ?????????????????# / +???????? | | ?????????????????# #???????? | | ?????????????????# """ #???????? | | ???????########### """ #???????? | | ???????? """ #???????? | | ????????? A % ######### | | ??????????? """ !# ! ]"# | | ??????????????# """ # #? | | ??????????????# """ # % #? | | ??????????????# % + """ #? | | ??????????????# """ %# """ ## | | ??????????????# """ # """ ! | | ??????????????#w """ ## | | ??????????????# # | | ??????????????# """ @## | | ??????????????# """ | | ??????????????# """ # | | ??????????????# # | | ??????????????# """ %% # | | ??????????????# """ # | | ??????????????# """ | | ??????????????# | | ??????????????# "T" """ # | | ??????????????# ######+# """ # | | ??????????????# # + """ # | | ??????????????# # """ # # | | ??????????????# # """??# # | | ??????????????# # "????#+###### | | ??????????????+ +??????# #????? | | ????????????? # #??????# #????? | | ???????????? # ???????# #????? | | ???????????? ?# ???????# #????? | | ??????????? ?# ???????# ###### | | ?????????? ??# ???????# # # | | ??????????????# ???????# # # | | ??????????????? ???????# # # | | ??????????????? ???????# # # | | ??????????????# ???????# # ! # | | ??????????????# #??????# + # | +----------------------------------------------------+ Best States ------------- Heat Dissipation 40 Energy Generation 15 Energy Capacity 275 Matter Stores 300 Matter Capacity 300 Sight Range 16 Terrain Scan Density 10 Armor Coverage 800 Resistance: TH 25 Power Shielding 33 Weapon Cycling 20 Evasion (%) 50 Recoil Reduction 3 Item Schematics ----------------- None Robot Schematics ------------------ None Fabricated ------------ Nothing Alien Tech Used ----------------- None Achievements -------------- None Challenges ------------ None Game ------ Seed NodeRemoteSubcomponent Manual? 0 Play Time 00:41:50 Cumulative 82.5 hours Start 2023.09.25 @ 18:22:23 End 2023.09.25 @ 20:18:45 Sessions 2 Manual Loads 0 Difficulty Rogue Special Mode None Game No. 82 Rogue 46 Adventurer 36 Explorer 0 Win Type - Total 7 Types 2/0/5/0/0/0/0/0/0 Lore% 47 Gallery% 69 Achievement% 58 Wizard Run 0 Options --------- ASCII 0 Keyboard 0 Movement Mouse Keybinds 0 Fullscreen 1 Font 18/SmallcapsGlow Map View 76x50 Tactical HUD 1 Map Filters NONE Filters NONE Steam 1 RUN: c85ad773-2c01-4663-a424-76d7020f57da